bitfinex-derivatives/quotes_SOLF0:USTF0_20240924
["timestamp","ask_amount","ask_price","bid_price","bid_amount"]
[1727180349948,9.41,147.0,146.98,3.4019]
[1727180350148,16.8844,147.01,146.96,9.41]
[1727180350658,16.8844,147.01,146.99,3.4017]
[1727180352460,16.8844,147.01,146.96,9.41]
[1727180352461,16.8844,147.01,146.98,3.4019]
[1727180354357,16.8844,147.01,146.99,3.4017]
[1727180355856,16.8844,147.01,146.98,3.4018]
[1727180356665,12.1693,147.01,146.99,3.4017]
[1727180360761,15.5706,147.01,146.99,3.4017]
[1727180362067,9.41,147.0,146.91,6.50363961]
[1727180362264,9.41,146.99,146.94,9.41]
[1727180363266,12.8119,146.99,146.94,9.41]
[1727180364970,9.41,146.99,146.9,4.1638]
[1727180365166,9.41,146.96,146.9,4.1638]
[1727180365469,9.41,146.96,146.91,9.41]
[1727180365670,9.41,146.96,146.9,4.1638]
[1727180365870,9.41,146.96,146.92,9.41]
[1727180366072,9.41,146.96,146.94,3.4027]
[1727180367166,12.8123,146.97,146.94,3.4027]
[1727180368078,3.4021,146.98,146.95,3.4025]
[1727180368281,9.41,146.99,146.94,9.41]
[1727180368774,12.8118,146.99,146.96,3.4023]
[1727180378282,3.4018,146.99,146.96,3.4023]
[1727180378676,3.4018,146.99,146.94,9.41]
[1727180380280,12.8116,147.0,146.94,9.41]
[1727180380586,1.3677,147.01,146.98,9.41]
[1727180380775,12.87995006,147.03,146.98,9.41]
[1727180381388,3.4011,147.02,146.99,3.4016]
[1727180382681,1.3012,147.04,146.99,9.41]
[1727180382981,1.3012,147.04,147.0,9.41]
[1727180383187,69.83790838,147.05,147.0,9.41]
[1727180383188,63.82840838,147.05,147.0,9.41]
[1727180383779,1.4082,147.1,147.02,9.41]
[1727180383990,1.4082,147.1,147.03,9.41]
[1727180384377,12.8098,147.08,147.05,3.4002]
[1727180384681,1.4082,147.1,147.04,9.41]
[1727180384879,3.3994,147.09,147.06,3.3999]
[1727180385079,1.4082,147.1,147.05,9.41]
[1727180385482,1.4082,147.1,147.06,3.4]
[1727180385879,1.4082,147.1,147.05,9.41]
[1727180386089,14.2176,147.1,147.07,3.3998]
[1727180386281,10.8182,147.1,147.05,9.41]
[1727180386588,3.3995,147.09,147.06,3.4]
[1727180386983,1.4082,147.1,147.04,9.41]
[1727180387184,3.3993,147.1,147.07,3.3997]
[1727180387483,15.48529342,147.11,147.07,3.3997]
[1727180387881,3.3992,147.1,147.07,3.3997]
[1727180390782,3.3992,147.1,147.08,3.3996]
[1727180392489,3.3992,147.1,147.07,12.8097]
[1727180392689,1.4065,147.16,147.09,9.41]
[1727180392890,9.41,147.14,147.09,9.41]
[1727180393191,3.3988,147.12,147.09,9.41]
[1727180393390,9.41,147.14,147.09,9.41]
[1727180394088,9.41,147.13,147.09,3.3992]
[1727180394994,3.3988,147.12,147.09,3.3992]
[1727180397795,12.8086,147.13,147.1,3.3991]
[1727180398596,3.3986,147.13,147.1,3.3991]
[1727180398796,3.3986,147.13,147.11,3.3989]
[1727180399296,12.8083,147.14,147.11,3.3989]
[1727180399794,9.41,147.14,147.11,3.3989]
[1727180400183,3.3987,147.12,147.1,3.3991]
[1727180400384,9.41,147.13,147.07,2.6374]
[1727180400584,9.41,147.13,147.08,9.41]
[1727180400794,9.41,147.12,147.07,2.6374]
[1727180400991,9.41,147.11,147.01,1.333]
[1727180401297,3.3992,147.1,147.02,1.2977]
[1727180401495,3.3992,147.1,147.06,9.41]
[1727180401691,9.41,147.11,147.07,9.41]
[1727180402090,4.80761534,147.16,147.08,12.8094]
[1727180402296,9.41,147.13,147.09,9.41]
[1727180402888,3.3989,147.12,147.09,12.8093]
[1727180403287,3.3986,147.13,147.1,3.399]
[1727180403896,9.41,147.12,147.09,3.3994]
[1727180404503,12.8088,147.12,147.09,3.3994]
[1727180411606,3.43059535,147.15,147.07,3.3997]
[1727180411607,12.8092,147.1,147.07,3.3997]
[1727180411798,9.41,147.11,147.07,9.41]
[1727180412000,9.41,147.12,147.07,9.41]
[1727180412201,3.3991,147.11,147.08,12.8095]
[1727180414512,3.3988,147.12,147.09,3.3993]
[1727180414900,3.3988,147.12,147.09,12.8093]
[1727180415105,1.4065,147.16,147.11,9.41]
[1727180415404,1.4065,147.16,147.04,3.43603696]
[1727180415405,1.4065,147.16,147.12,9.41]
[1727180415602,3.3982,147.15,147.12,12.8086]
[1727180416810,3.3983,147.14,147.12,12.8086]
[1727180417005,9.41,147.16,147.11,9.41]
[1727180417210,9.41,147.16,147.03,91.83172126]
[1727180417211,9.41,147.14,147.09,9.41]
[1727180417506,3.3986,147.13,147.1,3.399]
[1727180417711,9.41,147.14,147.09,9.41]
[1727180418502,3.3986,147.13,147.1,3.399]
[1727180418708,3.3986,147.13,147.09,9.41]
[1727180419104,3.3986,147.13,147.1,3.399]
[1727180419815,3.3983,147.14,147.11,12.8089]
[1727180420411,3.3983,147.14,147.12,12.8087]
[1727180423914,3.3983,147.14,147.12,9.41]
[1727180426413,3.3983,147.14,147.12,12.8087]
[1727180426613,3.3981,147.15,147.12,9.41]
[1727180427422,3.3979,147.16,147.13,12.8085]
[1727180428919,3.3977,147.17,147.14,12.8082]
[1727180429426,13.4815,147.19,147.15,9.41]
[1727180430020,3.3976,147.17,147.14,9.41]
[1727180430519,3.3976,147.17,147.14,12.8081]
[1727180432422,3.3978,147.16,147.14,12.8081]
[1727180433524,4.0715,147.19,147.15,3.398]
[1727180433727,4.0715,147.19,147.15,12.808]
[1727180433916,4.0715,147.19,147.15,9.41]
[1727180434117,1.3938,147.19,147.15,9.41]
[1727180434825,9.41,147.21,147.16,3.3977]
[1727180435228,9.41,147.21,147.17,9.41]
[1727180435414,3.3971,147.19,147.17,12.8075]
[1727180436024,3.40767007,147.22,147.17,12.8075]
[1727180436025,3.397,147.2,147.17,12.8075]
[1727180436920,4.1428,147.23,147.19,12.8071]
[1727180437121,3.41627574,147.26,147.21,9.41]
[1727180437321,9.41,147.26,147.21,9.41]
[1727180437634,12.82423618,147.26,147.21,9.41]
[1727180438130,3.3963,147.23,147.21,9.41]
[1727180438630,9.41,147.26,147.21,9.41]
[1727180438825,4.1627,147.31,147.23,9.41]
[1727180439026,9.41,147.28,147.23,9.41]
[1727180439426,3.3956,147.26,147.23,12.806]
[1727180440232,2.7687,147.31,147.25,3.3957]
[1727180440426,9.41,147.3,147.25,3.3957]
[1727180442028,9.41,147.3,147.26,9.41]
[1727180442632,3.3949,147.29,147.26,9.41]
[1727180443932,3.3949,147.29,147.26,12.8055]
[1727180444129,3.395,147.28,147.26,9.41]
[1727180445229,3.3952,147.27,147.24,3.3958]
[1727180445430,9.41,147.27,147.19,7.67558843]
[1727180445635,9.41,147.26,147.22,9.41]
[1727180446033,9.41,147.27,147.22,12.8063]
[1727180446736,3.3956,147.26,147.23,3.3962]
[1727180447433,3.3956,147.26,147.23,12.8062]
[1727180447737,3.3956,147.26,147.24,9.41]
[1727180451837,3.3956,147.26,147.24,12.8059]
[1727180452341,3.3955,147.27,147.25,9.41]
[1727180453638,3.3955,147.27,147.25,12.8057]
[1727180454044,3.3955,147.26,147.19,7.67558843]
[1727180454232,3.3955,147.26,147.24,9.41]
[1727180454437,9.41,147.29,147.23,12.806]
[1727180454632,3.396,147.24,147.19,7.67558843]
[1727180454935,9.41,147.25,147.2,12.8067]
[1727180455639,3.3961,147.24,147.21,12.8066]
[1727180456037,3.3961,147.24,147.22,9.41]
[1727180456235,3.3959,147.25,147.23,9.41]
[1727180457148,3.3959,147.25,147.23,12.8061]
[1727180458241,3.3956,147.26,147.23,12.8061]
[1727180459142,3.3957,147.25,147.23,9.41]
[1727180459341,9.41,147.26,147.21,12.8065]
[1727180459747,9.41,147.26,147.21,9.41]
[1727180460151,1.384,147.3,147.25,9.41]
[1727180460351,9.41,147.28,147.23,9.41]
[1727180460553,9.41,147.27,147.22,3.3962]
[1727180460749,9.41,147.27,147.22,12.8062]
[1727180461052,3.3958,147.25,147.23,9.41]
[1727180461552,3.3958,147.25,147.23,12.8061]
[1727180461757,3.3956,147.26,147.23,12.8061]
[1727180461953,9.41,147.29,147.25,9.41]
[1727180462152,9.41,147.3,147.27,9.41]
[1727180462450,9.41,147.29,147.19,2.8037]
[1727180462656,9.41,147.28,147.23,12.8061]
[1727180462851,2.7687,147.31,147.26,9.41]
[1727180462852,12.1787,147.31,147.26,9.41]
[1727180463257,9.41,147.3,147.19,2.8037]
[1727180463456,9.41,147.27,147.23,9.41]
[1727180463662,9.41,147.26,147.21,12.8065]
[1727180463857,3.3959,147.25,147.21,12.8065]
[1727180464454,3.3959,147.25,147.21,9.41]
[1727180464657,9.41,147.28,147.23,9.41]
[1727180464854,2.7687,147.31,147.27,9.41]
[1727180465163,2.7687,147.31,147.19,2.8037]
[1727180465164,1.33,147.31,147.19,2.8037]
[1727180465460,10.74,147.31,147.26,9.41]
[1727180465659,3.3947,147.3,147.26,12.8053]
[1727180467560,3.3948,147.29,147.26,12.8053]
[1727180468360,3.3947,147.3,147.27,12.8051]
[1727180470164,3.3947,147.3,147.28,3.395]
[1727180470367,1.429,147.33,147.28,9.41]
[1727180470568,10.839,147.33,147.29,9.41]
[1727180470871,3.3942,147.32,147.29,12.8046]
[1727180471075,1.3249,147.36,147.31,9.41]
[1727180471369,10.7349,147.36,147.31,9.41]
[1727180471569,3.3937,147.34,147.32,3.3939]
[1727180471774,3.3937,147.34,147.32,9.41]
[1727180472471,3.3937,147.34,147.31,3.3941]
[1727180474176,1.3249,147.39,147.25,18.01276728]
[1727180474367,2.8279,147.38,147.25,3.33276728]
[1727180474679,2.8279,147.38,147.24,4.0914]
[1727180474680,6.21624555,147.38,147.24,4.0914]
[1727180474974,6.21624555,147.38,147.26,14.68]
[1727180474975,14.68,147.35,147.26,14.68]
[1727180475170,3.3942,147.32,147.26,14.68]
[1727180475970,14.68,147.33,147.27,3.3952]
[1727180476473,3.3944,147.31,147.28,3.395]
[1727180476679,3.3944,147.31,147.24,18.7714]
[1727180476870,3.3944,147.31,147.27,3.3951]
[1727180477569,3.3944,147.31,147.28,3.395]
[1727180477768,3.3942,147.32,147.28,3.395]
[1727180480574,3.3942,147.32,147.29,3.3947]
[1727180483871,1.4277,147.33,147.29,3.3947]
[1727180484077,4.8216,147.33,147.26,14.68]
[1727180484574,4.8216,147.33,147.29,3.3946]
[1727180484973,4.8216,147.33,147.26,14.68]
[1727180485173,4.7888,147.34,147.28,14.68]
[1727180486080,4.7888,147.34,147.31,3.3942]
[1727180489277,1.3951,147.34,147.25,14.68]
[1727180489580,1.3951,147.34,147.27,14.68]
[1727180490282,4.7888,147.34,147.31,3.3942]
[1727180491182,1.3951,147.34,147.27,14.68]
[1727180491682,1.3951,147.34,147.29,14.68]
[1727180492283,9.39,147.36,147.32,9.39]
[1727180492984,9.39,147.35,147.24,4.0914]
[1727180493186,9.39,147.34,147.29,9.39]
[1727180493479,2.7755,147.37,147.3,9.39]
[1727180493787,9.39,147.36,147.31,9.39]
[1727180494380,3.3937,147.34,147.31,12.7841]
[1727180494588,9.39,147.36,147.31,9.39]
[1727180494789,3.3936,147.35,147.32,3.394]
[1727180494973,3.3936,147.35,147.31,9.39]
[1727180495180,9.39,147.35,147.26,3.35710404]
[1727180495376,12.7835,147.35,147.32,3.3941]
[1727180495685,3.3935,147.35,147.32,12.7841]
[1727180497691,3.3932,147.36,147.33,3.3937]
[1727180498687,3.3932,147.36,147.35,9.39]
[1727180500189,3.35541535,147.47,147.35,9.39]
[1727180500388,9.39,147.43,147.37,9.39]
[1727180500789,3.9584,147.46,147.4,9.39]
[1727180500986,9.39,147.45,147.4,9.39]
[1727180501289,3.9584,147.46,147.41,3.3918]
[1727180501290,3.3914,147.44,147.41,3.3918]
[1727180501486,9.39,147.45,147.41,12.7818]
[1727180501678,3.3916,147.43,147.4,12.7822]
[1727180504083,3.9584,147.46,147.42,9.39]
[1727180504482,13.3484,147.46,147.42,9.39]
[1727180505287,3.3916,147.43,147.42,9.39]
[1727180505483,3.9584,147.46,147.35,1.4238]
[1727180505683,9.39,147.41,147.32,81.48]
[1727180505884,9.39,147.41,147.35,9.39]
[1727180506287,9.39,147.41,147.35,12.7833]
[1727180506689,9.39,147.41,147.36,9.39]
[1727180506881,3.3924,147.4,147.37,3.3929]
[1727180507091,9.39,147.41,147.36,9.39]
[1727180508493,3.3925,147.39,147.36,12.7831]
[1727180508993,3.3924,147.4,147.36,9.39]
[1727180509188,9.39,147.41,147.36,9.39]
[1727180509693,9.39,147.37,147.31,2.7112]
[1727180509897,9.39,147.37,147.32,9.39]
[1727180510098,3.3935,147.35,147.32,12.7839]
[1727180510298,9.39,147.35,147.29,81.48]
[1727180510487,6.26529573,147.4,147.29,81.48]
[1727180510488,1.437,147.39,147.29,81.48]
[1727180510693,3.3941,147.32,147.29,94.2646]
[1727180510992,9.39,147.34,147.29,90.87]
[1727180511992,3.3939,147.33,147.3,3.3944]
[1727180512991,3.3941,147.32,147.29,84.8747]
[1727180513191,3.3941,147.32,147.29,3.3947]
[1727180513393,3.3942,147.32,147.28,18.0748]
[1727180513594,3.3942,147.32,147.28,14.68]
[1727180514397,3.3942,147.32,147.26,2.7219]
[1727180514599,3.3942,147.32,147.27,14.68]
[1727180515301,3.3942,147.32,147.29,3.3948]
[1727180515491,3.3943,147.31,147.27,14.68]
[1727180516399,3.3946,147.3,147.26,2.7219]
[1727180516598,3.3946,147.3,147.26,1.3516]
[1727180517005,3.3946,147.3,147.27,3.3951]
[1727180517300,3.3948,147.29,147.25,14.68]
[1727180517897,3.42339573,147.4,147.25,14.68]
[1727180518098,4.0992,147.39,147.29,14.68]
[1727180518606,18.7792,147.39,147.31,3.3942]
[1727180519202,18.7792,147.39,147.3,14.68]
[1727180519404,3.3934,147.35,147.32,3.394]
[1727180521105,18.7792,147.39,147.33,3.3938]
[1727180521403,3.3933,147.36,147.33,3.3938]
[1727180522906,4.0992,147.39,147.33,3.3938]
[1727180522907,3.3934,147.35,147.33,3.3938]
[1727180523204,18.7792,147.39,147.3,14.68]
[1727180523603,3.3939,147.33,147.3,14.68]
[1727180524401,3.3937,147.34,147.31,3.3942]
[1727180525409,3.3939,147.33,147.3,3.3945]
[1727180526004,14.68,147.37,147.29,18.0746]
[1727180526608,3.3942,147.32,147.29,18.0746]
[1727180527104,3.3939,147.33,147.3,3.3945]
[1727180527415,3.3939,147.33,147.29,14.68]
[1727180527710,3.3936,147.35,147.3,14.68]
[1727180528002,18.7792,147.39,147.3,14.68]
[1727180528208,3.3938,147.34,147.31,3.3942]
[1727180534515,3.3938,147.34,147.32,9.39]
[1727180534919,3.3938,147.34,147.32,12.7841]
[1727180536611,9.39,147.37,147.31,3.3942]
[1727180536612,3.3939,147.33,147.31,3.3942]
[1727180536812,3.3939,147.33,147.31,12.7842]
[1727180538009,9.39,147.33,147.24,1.4218]
[1727180538319,9.39,147.31,147.27,9.39]
[1727180539114,9.39,147.31,147.27,3.3951]
[1727180539115,3.3947,147.3,147.27,3.3951]
[1727180539524,3.3949,147.29,147.26,12.7853]
[1727180540114,9.39,147.31,147.26,9.39]
[1727180540115,3.3946,147.3,147.26,9.39]
[1727180540320,6.7855,147.38,147.28,9.39]
[1727180540623,3.3942,147.32,147.28,9.39]
[1727180540816,9.39,147.35,147.3,9.39]
[1727180541118,3.394,147.33,147.3,12.7844]
[1727180541322,9.39,147.35,147.3,9.39]
[1727180541916,3.3939,147.33,147.3,9.39]
[1727180542318,3.3939,147.33,147.28,14.68]
[1727180542522,3.3939,147.33,147.3,3.3944]
[1727180542722,3.3941,147.32,147.3,3.3944]
[1727180544222,14.68,147.35,147.26,14.68]
[1727180544419,2.7178,147.34,147.26,14.68]
[1727180545429,3.3945,147.31,147.28,3.3949]
[1727180545725,2.7178,147.34,147.28,3.3949]
[1727180546116,3.3945,147.31,147.28,3.3949]
[1727180546615,3.3945,147.31,147.29,3.3947]
[1727180546820,3.3942,147.32,147.29,3.3947]
[1727180547020,2.7178,147.34,147.3,3.3944]
[1727180547525,3.3939,147.33,147.3,3.3944]
[1727180547722,1.3374,147.34,147.31,3.3943]
[1727180547922,1.3374,147.34,147.28,14.68]
[1727180548728,3.3942,147.32,147.28,14.68]
[1727180549623,14.68,147.37,147.28,14.68]
[1727180550020,3.394,147.33,147.28,14.68]
[1727180550223,14.68,147.37,147.28,14.68]
[1727180550425,3.3941,147.32,147.29,3.3946]
[1727180550629,14.68,147.37,147.28,14.68]
[1727180551721,1.4021,147.38,147.32,3.3941]
[1727180551927,2.6828,147.39,147.34,14.68]
[1727180552125,14.68,147.43,147.34,14.68]
[1727180552327,17.3569,147.43,147.34,14.68]
[1727180552835,2.6769,147.43,147.36,14.68]
[1727180553530,3.3923,147.4,147.37,3.3928]
[1727180553833,2.6769,147.43,147.36,14.68]
[1727180554539,3.3919,147.42,147.39,3.3925]
[1727180555531,2.6769,147.43,147.36,14.68]
[1727180555828,2.6769,147.43,147.34,16.0108]
[1727180556029,3.3923,147.4,147.37,3.3928]
[1727180556430,2.6769,147.43,147.34,16.0108]
[1727180557331,3.3922,147.41,147.34,16.0108]
[1727180557536,91.68138326,147.48,147.36,14.68]
[1727180557834,14.68,147.46,147.39,3.3923]
[1727180558330,3.3919,147.42,147.39,3.3923]
[1727180558638,14.68,147.46,147.39,3.3923]
[1727180558933,14.68,147.46,147.36,14.68]
[1727180559523,14.68,147.46,147.4,3.3921]
[1727180559730,4.191,147.47,147.38,14.68]
[1727180559930,4.191,147.47,147.19,311.48]
[1727180559931,14.68,147.41,147.19,311.48]
[1727180560130,14.68,147.38,147.3,14.68]
[1727180560332,18.03177516,147.38,147.29,2.694]
[1727180560634,3.3937,147.34,147.29,1.3594]
[1727180561223,3.3935,147.35,147.29,1.3594]
[1727180561633,3.3935,147.35,147.32,3.394]
[1727180561837,3.3933,147.36,147.32,3.394]
[1727180562035,14.68,147.38,147.32,3.394]
[1727180562929,3.3934,147.36,147.32,3.394]
[1727180563131,3.3934,147.36,147.3,14.68]
[1727180564029,14.68,147.38,147.3,14.68]
[1727180564030,3.393,147.37,147.3,14.68]
[1727180564428,14.68,147.38,147.32,3.3939]
[1727180565231,14.68,147.38,147.3,14.68]
[1727180565628,3.393,147.37,147.3,14.68]
[1727180565829,1.3605,147.39,147.34,3.3936]
[1727180566030,3.3929,147.38,147.34,3.3936]
[1727180567030,3.3929,147.38,147.3,15.9972]
[1727180567031,1.3605,147.39,147.3,15.9972]
[1727180567530,14.68,147.38,147.3,1.3172]
[1727180567928,14.68,147.36,147.3,1.3172]
[1727180568129,3.3938,147.34,147.31,3.3942]
[1727180568535,3.3938,147.34,147.3,1.3172]
[1727180568536,14.68,147.36,147.3,1.3172]
[1727180568934,3.3936,147.35,147.32,3.3941]
[1727180569736,3.3936,147.35,147.33,3.3938]
[1727180570540,3.3936,147.35,147.32,3.394]
[1727180572235,14.68,147.38,147.32,3.394]
[1727180572937,3.3935,147.35,147.32,3.394]
[1727180573933,14.68,147.36,147.29,1.3594]
[1727180574738,3.3938,147.34,147.31,3.3941]
[1727180574937,14.68,147.36,147.29,1.3594]
[1727180575134,3.3936,147.35,147.32,3.394]
[1727180575538,14.68,147.34,147.26,2.5608]
[1727180575736,3.394,147.33,147.3,3.3944]
[1727180575937,3.394,147.33,147.26,5.96712851]
[1727180576244,14.68,147.34,147.26,5.96712851]
[1727180576639,14.68,147.34,147.26,2.5608]
[1727180576845,3.3941,147.32,147.26,2.5608]
[1727180577242,3.3943,147.31,147.28,3.3949]
[1727180577444,14.68,147.34,147.28,3.3949]
[1727180577946,14.68,147.36,147.26,1.3291]
[1727180578143,14.68,147.36,147.27,14.68]
[1727180578344,14.68,147.36,147.31,3.3943]
[1727180578648,14.68,147.36,147.27,14.68]
[1727180579046,3.3938,147.34,147.31,3.3942]
[1727180579348,3.3938,147.34,147.27,14.68]
[1727180579745,14.68,147.38,147.29,14.68]
[1727180580143,3.3934,147.35,147.32,3.3939]
[1727180582749,14.68,147.38,147.33,3.3937]
[1727180583552,3.3934,147.35,147.33,3.3937]
[1727180584850,3.3931,147.37,147.35,3.3933]
[1727180585047,14.68,147.43,147.33,18.03675969]
[1727180585252,14.68,147.45,147.35,14.68]
[1727180585652,15.9825,147.45,147.35,14.68]
[1727180585955,3.3922,147.41,147.38,3.3926]
[1727180587247,3.3924,147.4,147.37,3.3928]
[1727180588748,15.9825,147.45,147.35,14.68]
[1727180589755,3.3923,147.4,147.37,3.3928]
[1727180590658,3.3926,147.39,147.36,3.3931]
[1727180592054,14.68,147.43,147.35,14.68]
[1727180592450,3.3921,147.41,147.37,3.3927]
[1727180593056,3.3921,147.41,147.35,14.68]
[1727180593554,3.3921,147.41,147.38,3.3925]
[1727180595348,3.3921,147.41,147.35,14.68]
[1727180595349,3.3919,147.42,147.39,3.3924]
[1727180596052,3.3917,147.43,147.35,14.68]
[1727180596249,1.3025,147.45,147.37,14.68]
[1727180596654,3.3915,147.44,147.41,3.3919]
[1727180596854,3.3915,147.44,147.37,14.68]
[1727180596855,1.3025,147.45,147.37,14.68]
[1727180597051,58.90249724,147.51,147.41,14.68]
[1727180597350,58.90249724,147.51,147.34,8.2241]
[1727180597351,14.68,147.52,147.43,14.68]
[1727180597555,16.1088,147.5,147.41,14.68]
[1727180597954,3.3908,147.47,147.43,3.3913]
[1727180598149,16.1088,147.5,147.43,3.3913]
[1727180598354,16.1088,147.5,147.41,14.68]
[1727180598551,16.1088,147.5,147.45,3.3911]
[1727180598552,3.3906,147.48,147.45,3.3911]
[1727180599150,3.3906,147.48,147.41,14.68]
[1727180599151,3.3906,147.48,147.44,3.3912]
[1727180599954,3.3906,147.48,147.45,3.3911]
[1727180600658,3.3906,147.48,147.44,3.3912]
[1727180601157,3.3906,147.48,147.45,3.3911]
[1727180601860,3.3906,147.48,147.44,3.3913]
[1727180602155,3.3901,147.5,147.43,14.68]
[1727180602359,1.3199,147.51,147.45,3.3909]
[1727180602662,1.3199,147.51,147.43,14.68]
[1727180602859,3.39,147.5,147.43,14.68]
[1727180603362,3.39,147.5,147.46,3.3907]
[1727180603858,1.3199,147.51,147.45,14.68]
[1727180603859,3.3898,147.51,147.45,14.68]
[1727180604261,1.3875,147.54,147.47,3.3905]
[1727180604456,1.3875,147.54,147.45,14.68]
[1727180604861,3.3898,147.51,147.47,3.3905]
[1727180605261,1.3875,147.54,147.47,3.3905]
[1727180606057,3.3899,147.51,147.47,3.3905]
[1727180606256,1.3875,147.54,147.45,14.68]
[1727180606463,1.3875,147.54,147.47,14.68]
[1727180606862,3.3895,147.52,147.49,3.39]
[1727180607367,3.3898,147.51,147.48,3.3904]
[1727180607564,1.3875,147.54,147.45,14.68]
[1727180608064,3.3898,147.51,147.48,3.3903]
[1727180608262,14.68,147.58,147.47,14.68]
[1727180608466,1.3252,147.57,147.47,14.68]
[1727180608764,3.3893,147.53,147.5,3.3898]
[1727180609267,3.3895,147.52,147.49,3.39]
[1727180609661,14.68,147.56,147.44,1.3446]
[1727180609864,14.68,147.53,147.44,16.0246]
[1727180610283,3.3901,147.5,147.44,16.0246]
[1727180610879,3.3901,147.5,147.47,3.3906]
[1727180611473,14.68,147.53,147.44,1.3446]
[1727180611675,14.68,147.52,147.41,1.2294]
[1727180611981,1.306,147.51,147.44,3.3912]
[1727180612178,3.3908,147.47,147.44,3.3912]
[1727180612477,14.68,147.5,147.41,14.68]
[1727180612673,3.391,147.46,147.42,3.3917]
[1727180613269,3.3908,147.47,147.41,14.68]
[1727180613975,3.3908,147.47,147.44,3.3912]
[1727180614872,3.3908,147.47,147.36,1.2294]
[1727180614873,14.68,147.48,147.39,14.68]
[1727180615073,14.68,147.46,147.36,1.3292]
[1727180615270,14.68,147.44,147.38,3.3926]
[1727180615579,14.68,147.44,147.36,1.3292]
[1727180615970,3.3922,147.41,147.37,3.3928]
[1727180616473,16.0783,147.44,147.37,3.3928]
[1727180617074,16.0783,147.44,147.35,96.08]
[1727180617272,1.3983,147.44,147.35,96.08]
[1727180617470,1.3983,147.44,147.37,14.68]
[1727180617675,3.3917,147.43,147.37,14.68]
[1727180617869,1.3983,147.44,147.37,14.68]
[1727180618077,3.3917,147.43,147.39,3.3923]
[1727180618683,3.3917,147.43,147.4,3.3922]
[1727180618979,4.7897,147.44,147.37,14.68]
[1727180619179,2.7772,147.45,147.41,3.3919]
[1727180619970,2.7772,147.45,147.39,14.68]
[1727180621179,3.3913,147.45,147.42,3.3917]
[1727180621884,3.3907,147.47,147.41,14.68]
[1727180622779,2.7143,147.51,147.41,14.68]
[1727180622780,3.3905,147.48,147.41,18.03832541]
[1727180622986,3.3905,147.48,147.43,14.68]
[1727180623480,3.3903,147.49,147.43,14.68]
[1727180623783,1.407,147.51,147.41,14.68]
[1727180623988,3.391,147.46,147.43,3.3914]
[1727180624186,14.68,147.5,147.41,14.68]
[1727180625184,3.3909,147.46,147.43,3.3914]
[1727180626784,14.68,147.5,147.41,14.68]
[1727180627086,2.7016,147.51,147.41,14.68]
[1727180627279,3.3905,147.48,147.41,14.68]
[1727180627487,3.3905,147.48,147.45,3.391]
[1727180627686,3.3905,147.48,147.41,18.08389442]
[1727180627889,3.3905,147.48,147.45,3.3909]